bitfinex-derivatives/quotes_ETHF0:USTF0_20250209
["timestamp","ask_amount","ask_price","bid_price","bid_amount"]
[1739099921802,4.70962686,2667.1,2666.8,40.8]
[1739099923108,3.2078,2666.9,2666.6,0.00562419]
[1739099923296,0.5796,2666.8,2666.6,0.00562419]
[1739099923497,5.41459773,2666.8,2666.6,0.00562419]
[1739099930301,0.602,2666.7,2666.6,0.00562419]
[1739099932108,0.79421247,2666.7,2666.6,0.00562419]
[1739099935905,0.19221247,2666.7,2666.6,0.00562419]
[1739099942914,4.1532215,2666.7,2666.6,0.00562419]
[1739099945922,3.2078,2666.9,2666.6,0.00562419]
[1739099948818,3.2078,2667.5,2666.8,9.4358]
[1739099949017,3.2078,2667.5,2666.9,1.7029]
[1739099949521,3.93021459,2667.4,2666.9,1.7029]
[1739099950623,3.93021459,2667.4,2666.9,7.9309]
[1739099952521,3.2078,2667.5,2666.9,7.9309]
[1739099954122,3.2078,2667.5,2666.9,8.23751463]
[1739099954722,3.2078,2667.5,2666.9,1.7029]
[1739099954927,4.62370974,2667.4,2666.9,1.7029]
[1739099955331,3.2078,2667.2,2666.9,1.7029]
[1739099955829,4.05360974,2667.1,2666.9,1.7029]
[1739099956832,0.5458,2667.0,2666.7,0.5758]
[1739099957330,3.98131646,2666.9,2666.7,0.5758]
[1739099959230,7.18911646,2666.9,2666.6,0.00562419]
[1739099959433,0.5569,2666.8,2666.6,0.00562419]
[1739099959634,1.1098,2666.8,2666.6,0.00562419]
[1739099960332,4.04640208,2666.7,2666.6,0.00562419]
[1739099960532,5.66140208,2666.7,2666.6,0.00562419]
[1739099960937,11.66140208,2666.7,2666.1,40.8]
[1739099961135,3.2078,2666.2,2665.7,0.5541]
[1739099961636,4.22216732,2666.1,2665.8,40.8]
[1739099962236,4.22216732,2666.1,2665.7,0.55972419]
[1739099962843,4.22216732,2666.1,2665.7,41.35972419]
[1739099963647,0.5878,2666.0,2665.7,41.35972419]
[1739099964043,4.34881936,2665.9,2665.7,41.35972419]
[1739099965040,3.39782812,2666.2,2665.7,41.35972419]
[1739099965241,3.94115633,2666.0,2665.7,41.35972419]
[1739099965442,3.94115633,2666.1,2665.7,41.35972419]
[1739099965754,3.39782812,2666.2,2665.7,41.35972419]
[1739099965943,4.29088819,2666.1,2665.7,41.35972419]
[1739099967337,0.00562419,2666.2,2665.7,41.35972419]
[1739099968742,4.15221045,2666.1,2665.7,41.35972419]
[1739099969043,3.2078,2665.9,2665.7,41.35972419]
[1739099969864,4.30043141,2665.8,2665.7,41.35972419]
[1739099970144,0.00562419,2666.2,2665.7,41.35972419]
[1739099970539,4.32821817,2666.0,2665.7,41.35972419]
[1739099970739,4.32821817,2666.1,2665.7,41.35972419]
[1739099970939,0.00562419,2666.2,2665.7,41.35972419]
[1739099971241,4.09018508,2666.1,2665.7,41.35972419]
[1739099973542,4.67848508,2666.1,2665.7,41.35972419]
[1739099974752,4.67848508,2666.1,2665.7,0.55972419]
[1739099979558,3.2078,2665.9,2665.7,0.55972419]
[1739099980151,3.2078,2665.9,2665.7,0.00562419]
[1739099980152,3.94354279,2665.8,2665.7,0.00562419]
[1739099980353,4.52234279,2665.8,2665.7,0.00562419]
[1739099980549,5.11974279,2665.8,2665.3,1.7116]
[1739099980749,0.6018,2665.7,2665.3,1.7116]
[1739099981148,4.06543397,2665.6,2665.3,1.7116]
[1739099983252,3.2078,2665.9,2665.3,1.7116]
[1739099983561,4.19346824,2665.8,2665.3,1.7116]
[1739099983853,3.2078,2665.9,2665.3,7.9396]
[1739099984244,3.2078,2665.9,2665.4,6.228]
[1739099986255,3.2078,2665.9,2665.3,1.7116]
[1739099986460,3.2078,2665.9,2665.4,41.26921467]
[1739099987156,3.2078,2665.9,2665.4,40.8]
[1739099989047,3.2078,2665.9,2665.5,0.4696683]
[1739099989244,3.2078,2665.9,2665.6,0.4696683]
[1739099989450,3.2078,2665.9,2665.4,40.8]
[1739099989645,3.2078,2665.9,2665.5,0.4698884]
[1739099989952,3.2078,2665.9,2665.6,0.4698884]
[1739099990151,3.2078,2665.9,2665.4,40.8]
[1739099990350,3.2078,2665.9,2665.5,0.46988428]
[1739099990554,3.2078,2665.9,2665.6,0.46988428]
[1739099990753,3.2078,2665.9,2665.7,0.46988428]
[1739099990952,3.2078,2665.9,2665.8,1.7123]
[1739099991357,3.2078,2665.9,2665.8,2.18231582]
[1739099991852,3.2078,2665.9,2665.8,2.18230578]
[1739099992463,3.2078,2666.8,2665.8,13.23410578]
[1739099992650,2.994,2667.2,2665.8,13.23410578]
[1739099992651,4.304,2667.2,2666.2,9.4358]
[1739099992846,4.304,2667.2,2666.3,6.69800578]
[1739099993050,4.11591717,2667.1,2666.4,0.47000578]
[1739099993250,4.11591717,2667.1,2666.5,0.47000578]
[1739099993454,4.11591717,2667.1,2666.3,6.228]
[1739099993767,4.12154136,2667.1,2666.4,0.46953404]
[1739099994061,4.12154136,2667.1,2666.5,41.26953624]
[1739099994256,4.12154136,2667.1,2666.5,40.8]
[1739099994451,0.00562419,2667.1,2666.5,44.0078]
[1739099995655,0.00562419,2667.1,2666.6,1.6974]
[1739099996051,0.00562419,2667.1,2666.6,1.70302419]
[1739100003457,3.99363433,2667.0,2666.6,1.70302419]
[1739100003668,4.59073433,2667.0,2666.6,1.70302419]
[1739100003965,4.59073433,2667.0,2666.6,0.00562419]
[1739100004366,3.2078,2666.9,2666.6,0.00562419]
[1739100004859,3.91672403,2666.8,2666.6,0.00562419]
[1739100005063,0.5633,2666.7,2666.6,0.00562419]
[1739100005268,1.1548,2666.7,2666.6,0.00562419]
[1739100005463,5.50119308,2666.7,2666.6,0.00562419]
[1739100005669,3.2078,2666.9,2666.6,0.00562419]
[1739100005866,3.7711,2666.9,2666.6,0.00562419]
[1739100006166,4.17621573,2666.8,2666.6,0.58612419]
[1739100006366,0.00562419,2667.1,2666.6,1.17872419]
[1739100006768,4.17621573,2666.9,2666.6,1.17872419]
[1739100006968,4.17621573,2667.0,2666.6,1.74712419]
[1739100007165,0.00562419,2667.1,2666.6,1.74712419]
[1739100007568,4.08787343,2667.0,2666.7,6.228]
[1739100008055,0.00562419,2667.1,2666.7,6.228]
[1739100008465,0.00562419,2667.1,2666.9,0.03849763]
[1739100008966,0.00562419,2667.1,2667.0,0.5701]
[1739100009171,0.00562419,2667.1,2667.0,0.64709526]
[1739100010067,0.00562419,2667.1,2667.0,0.68559289]
[1739100012071,0.00562419,2667.1,2667.0,0.69961909]
[1739100016271,0.00562419,2667.1,2667.0,41.49961909]
[1739100016669,0.00562419,2667.1,2667.0,47.72761909]
[1739100017064,0.00562419,2667.1,2667.0,48.19597756]
[1739100017572,0.00562419,2667.1,2667.0,47.72761909]
[1739100018070,1.1373,2667.8,2667.0,47.72761909]
[1739100018266,1.1373,2667.8,2667.4,0.16817386]
[1739100018469,4.28518975,2667.7,2667.4,0.16817386]
[1739100019266,4.28518975,2667.7,2667.5,0.18076837]
[1739100020270,4.28518975,2667.7,2667.6,0.18076837]
[1739100025274,4.28518975,2667.7,2667.6,0.21929616]
[1739100025978,4.28518975,2667.7,2667.6,0.23201765]
[1739100031480,4.28518975,2667.7,2667.6,0.27053874]
[1739100032185,4.28518975,2667.7,2667.6,0.28326693]
[1739100044087,4.28518975,2667.7,2667.6,1.40116693]
[1739100044893,0.00562419,2667.8,2667.6,1.87143998]
[1739100045081,0.00562419,2667.8,2667.6,1.40116693]
[1739100045282,0.00562419,2667.8,2667.7,0.28326693]
[1739100049294,0.00562419,2667.8,2667.7,0.75337799]
[1739100049497,0.00562419,2667.8,2667.7,0.75335857]
[1739100049692,0.00562419,2667.8,2667.7,0.28326693]
[1739100050199,0.00562419,2667.8,2667.7,3.96116052]
[1739100051295,0.00562419,2667.8,2667.7,3.67769494]
[1739100051597,0.00562419,2667.8,2667.7,3.99979369]
[1739100051785,3.2078,2668.5,2667.7,3.99979369]
[1739100051991,3.2078,2668.5,2668.1,0.33445055]
[1739100052189,3.98449763,2668.4,2668.2,1.1402]
[1739100053090,3.98449763,2668.4,2668.3,0.33445055]
[1739100054694,3.98449763,2668.4,2668.0,0.00562419]
[1739100058100,3.98449763,2668.4,2668.2,0.03853869]
[1739100058691,7.19229763,2668.4,2668.2,0.03853869]
[1739100058896,7.19229763,2668.4,2668.3,0.05118362]
[1739100059216,3.2078,2668.4,2668.3,0.05118362]
[1739100059496,7.17165469,2668.4,2668.3,0.05118362]
[1739100063709,3.96385469,2668.4,2668.3,0.05118362]
[1739100065100,3.96385469,2668.4,2668.3,0.08988487]
[1739100065604,3.96385469,2668.4,2668.3,0.10236724]
[1739100067199,3.2078,2668.4,2668.3,0.10236724]
[1739100067599,7.52731777,2668.4,2668.3,0.10236724]
[1739100071707,7.52731777,2668.4,2668.3,0.14125515]
[1739100072704,7.52731777,2668.4,2668.3,0.15354382]
[1739100076909,7.52731777,2668.4,2668.0,0.00562419]
[1739100078607,3.2078,2668.1,2667.4,44.0078]
[1739100078811,3.2959,2668.0,2667.4,44.0078]
[1739100079109,7.42293672,2668.0,2667.7,0.03855347]
[1739100079502,7.42293672,2668.0,2667.8,0.05117658]
[1739100080610,7.42293672,2668.0,2667.9,0.05117658]
[1739100082814,13.42293672,2668.0,2667.6,0.00562419]
[1739100083118,3.2078,2667.7,2667.6,0.00562419]
[1739100083502,7.38262041,2667.7,2667.6,0.00562419]
[1739100086119,7.38262041,2667.7,2667.6,0.04417431]
[1739100086805,7.38262041,2667.7,2667.6,0.05680077]
[1739100089722,4.17482041,2667.7,2667.6,0.05680077]
[1739100093324,4.17482041,2667.7,2667.6,0.09571172]
[1739100094726,3.2078,2667.8,2667.6,0.10797735]
[1739100094921,3.2078,2667.8,2667.7,1.147]
[1739100095624,3.2078,2667.8,2667.7,1.24935316]
[1739100095828,3.2078,2667.8,2667.7,0.67885316]
[1739100098624,3.2078,2667.8,2667.7,1.81655316]
[1739100100634,3.2078,2667.8,2667.7,1.85513006]
[1739100101935,3.2078,2667.8,2667.7,1.86772974]
[1739100105022,7.32991191,2667.8,2667.7,1.86772974]
[1739100105928,4.12211191,2667.8,2667.7,1.86772974]
[1739100106231,3.92927736,2667.9,2667.7,1.86772974]
[1739100106534,1.1209,2668.0,2667.7,0.73002974]
[1739100106735,1.1209,2668.0,2667.8,0.15352974]
[1739100106936,3.92927736,2667.9,2667.8,0.15352974]
[1739100107832,3.92927736,2667.9,2667.8,0.19247141]
[1739100108935,3.92927736,2667.9,2667.6,0.00562419]
[1739100109137,3.92927736,2667.9,2667.8,0.20470632]
[1739100113639,3.92927736,2667.9,2667.8,0.77240632]
[1739100115230,3.92927736,2667.9,2667.8,0.81101334]
[1739100115833,3.92927736,2667.9,2667.8,0.8235829]
[1739100119345,1.1209,2668.0,2667.8,0.8235829]
[1739100119846,1.1209,2668.0,2667.9,0.2558829]
[1739100121741,3.39465405,2668.1,2667.9,0.2558829]
[1739100121945,3.2078,2668.1,2667.9,0.2558829]
[1739100122335,3.2078,2668.1,2668.0,0.2864426]
[1739100126248,7.13607227,2668.1,2668.0,0.2864426]
[1739100127551,7.3190503,2668.1,2668.0,0.2864426]
[1739100131238,9.0032503,2668.1,2668.0,0.2864426]
[1739100132750,15.0032503,2668.1,2667.6,0.00562419]
[1739100132949,3.2078,2667.7,2667.6,0.00562419]
[1739100133348,7.26378971,2667.7,2667.6,0.00562419]
[1739100142260,7.26378971,2667.7,2667.0,1.7516]
[1739100142465,3.2078,2667.4,2667.0,1.7516]
[1739100142961,3.98148421,2667.3,2666.8,0.5832]
[1739100143154,3.2078,2667.1,2666.3,3.2078]
[1739100143454,1.614,2667.0,2666.8,0.00562419]
[1739100143660,5.84733413,2667.0,2666.8,0.00562419]
[1739100144562,0.18530949,2666.9,2666.8,0.00562419]
[1739100144954,4.2221588,2666.9,2666.8,0.00562419]
[1739100145753,4.2221588,2666.9,2666.4,0.5832]
[1739100145954,0.5815,2666.8,2666.4,0.5832]
[1739100146155,1.1233,2666.7,2666.4,0.5832]
[1739100146459,5.06058383,2666.7,2666.4,0.5832]
[1739100147054,3.2078,2666.5,2666.3,0.00562419]
[1739100147254,1.614,2666.4,2666.3,0.00562419]
[1739100147555,6.32574634,2666.4,2666.3,0.00562419]
[1739100148355,12.32574634,2666.4,2665.4,3.2078]
[1739100148554,3.2078,2666.1,2665.5,1.1254]
[1739100148758,3.2078,2665.8,2665.5,41.9254]
[1739100149159,4.18917124,2665.7,2665.5,41.9254]
[1739100150165,4.18917124,2665.7,2665.5,1.1254]
[1739100150564,4.18917124,2665.7,2665.5,41.9254]
[1739100150765,4.18917124,2665.7,2665.6,0.5631]
[1739100151967,0.00562419,2665.9,2665.6,0.5631]
[1739100152465,0.00562419,2665.9,2665.7,40.8]
[1739100152663,0.00562419,2665.9,2665.7,44.0078]
[1739100153168,0.00562419,2665.9,2665.7,40.8]
[1739100154268,4.21972656,2665.8,2665.6,0.5631]
[1739100154771,0.00562419,2665.9,2665.6,0.5631]
[1739100156173,0.00562419,2665.9,2665.7,40.8]
[1739100159670,0.00562419,2665.9,2665.6,0.5631]
[1739100160165,0.00562419,2665.9,2665.6,41.3631]
[1739100167173,0.00562419,2665.9,2665.7,3.2078]
[1739100167480,1.615,2666.6,2665.7,9.4308]
[1739100167673,1.615,2666.6,2666.0,3.2078]
[1739100167972,4.25384922,2666.6,2666.1,42.5628]
[1739100168572,4.25947341,2666.6,2666.1,42.5628]
[1739100170680,4.25947341,2666.6,2666.1,1.7628]
[1739100178981,4.25947341,2666.6,2666.2,3.2078]
[1739100180689,0.00562419,2666.6,2666.3,0.46824053]
[1739100180981,0.00562419,2666.6,2666.2,3.2078]
[1739100181190,0.00562419,2666.6,2666.3,0.46824863]
[1739100181488,0.00562419,2666.6,2666.5,3.2078]
[1739100181884,0.00562419,2666.6,2666.5,3.67586368]
[1739100182091,0.00562419,2666.6,2666.5,3.2078]
[1739100182387,0.00562419,2666.6,2666.5,3.67569592]
[1739100182591,0.00562419,2666.6,2666.5,9.67569592]
[1739100182889,0.558,2667.4,2666.5,9.67569592]
[1739100183087,3.2078,2667.3,2666.6,0.46789592]
[1739100183285,7.52010768,2667.3,2666.6,1.7161]
[1739100183794,7.52010768,2667.3,2666.7,40.80562419]
[1739100184087,0.00562419,2667.2,2666.7,40.80562419]
[1739100184792,0.00562419,2667.2,2666.8,3.2078]
[1739100185389,0.00562419,2667.2,2667.1,3.2078]
[1739100189286,0.00562419,2667.2,2667.1,3.50271597]
[1739100189487,0.00562419,2667.2,2667.1,9.50271597]
[1739100189689,1.1509,2667.9,2667.1,15.72571597]
[1739100189992,1.1509,2667.9,2667.4,3.2078]
[1739100190292,1.1509,2667.9,2667.5,0.571]
[1739100194696,0.5908,2667.9,2667.5,0.571]
[1739100198195,4.21043681,2667.8,2667.4,3.2078]
[1739100198401,0.577,2667.7,2667.3,0.5513]
[1739100200294,0.577,2667.7,2667.2,1.1258]
[1739100200496,0.577,2667.7,2667.2,1.6788]
[1739100204197,0.577,2667.7,2667.1,3.2078]
[1739100204408,4.03904398,2667.6,2666.9,0.603]
[1739100204802,0.5917,2667.5,2666.9,0.603]
[1739100205508,4.30691922,2667.4,2666.7,44.56582419]
[1739100205805,0.5449,2667.3,2666.7,44.56582419]
[1739100206005,0.5532,2667.2,2666.7,44.56582419]
[1739100206406,0.5638,2667.1,2666.7,44.56582419]
[1739100207508,0.5638,2667.1,2666.8,0.5897]
[1739100211111,0.5638,2667.1,2666.9,0.47956433]
[1739100211314,0.5638,2667.1,2666.8,0.5897]
[1739100211515,0.5638,2667.1,2666.9,0.4795653]
[1739100211720,0.5638,2667.1,2666.8,0.5897]
[1739100212014,0.5638,2667.1,2666.9,0.47967125]
[1739100212215,0.5638,2667.1,2666.8,0.5897]
[1739100212415,0.5638,2667.1,2666.9,0.47975916]
[1739100212627,0.5638,2667.1,2666.8,0.5897]
[1739100212812,0.5638,2667.1,2666.9,0.47974727]
[1739100213014,0.5638,2667.1,2666.8,0.5897]
[1739100213316,0.5638,2667.1,2666.9,0.47974638]
[1739100213519,0.5638,2667.1,2666.8,1.143]
[1739100213813,0.5638,2667.1,2666.9,0.47980225]
[1739100214117,0.5638,2667.1,2666.8,1.143]
[1739100214319,0.5638,2667.1,2666.9,0.47980472]
[1739100214621,0.5638,2667.1,2666.8,1.143]
[1739100214917,0.5638,2667.1,2666.9,0.47982551]
[1739100215119,0.5638,2667.1,2666.8,1.143]
[1739100215319,0.5638,2667.1,2666.9,0.47982285]
[1739100215618,0.5638,2667.1,2666.8,1.143]
[1739100215914,0.5638,2667.1,2666.9,0.47981339]
[1739100216115,0.5638,2667.1,2666.8,1.143]
[1739100216317,0.5638,2667.1,2666.9,0.47981028]
[1739100216518,0.5638,2667.1,2666.8,1.143]
[1739100216916,0.5638,2667.1,2666.9,0.47979108]
[1739100217116,0.5638,2667.1,2666.8,1.143]
[1739100218417,0.5638,2667.1,2666.9,0.47976165]
[1739100218621,0.5638,2667.1,2666.8,0.5897]
[1739100219823,0.5638,2667.1,2666.7,40.80562419]
[1739100220016,3.90990328,2667.0,2666.7,40.80562419]
[1739100220216,0.5701,2666.9,2666.7,40.80562419]
[1739100220417,0.5977,2666.8,2666.7,40.80562419]
[1739100220624,4.50760328,2666.8,2666.7,40.80562419]
[1739100223829,3.90990328,2666.8,2666.7,40.80562419]
[1739100224126,1.1274,2667.1,2666.7,40.80562419]
[1739100224324,1.1274,2667.1,2666.8,1.7321]
[1739100228529,3.7826,2667.5,2666.8,1.7321]
[1739100228725,1.169,2667.4,2666.8,1.7321]
[1739100229031,5.25485248,2667.4,2666.8,1.7321]
[1739100232627,5.25485248,2667.4,2666.9,0.48038372]
[1739100232824,5.25485248,2667.4,2666.8,1.7321]
[1739100233028,5.25485248,2667.4,2666.9,0.4803797]
[1739100233233,5.25485248,2667.4,2666.8,1.7321]
[1739100233423,5.25485248,2667.4,2666.9,0.48039576]
[1739100233627,5.25485248,2667.4,2666.8,1.7321]
[1739100233828,5.25485248,2667.4,2666.9,0.48050365]
[1739100234023,5.25485248,2667.4,2666.8,1.7321]
[1739100234233,5.25485248,2667.4,2666.9,0.48050062]
[1739100234433,5.25485248,2667.4,2666.8,1.7321]
[1739100234628,5.25485248,2667.4,2666.9,0.48063674]
[1739100234828,5.25485248,2667.4,2666.8,1.7321]
[1739100235337,5.25485248,2667.4,2666.9,0.48063586]
[1739100235736,5.25485248,2667.4,2666.8,1.7321]
[1739100236035,5.25485248,2667.4,2667.0,0.48066342]
[1739100236335,5.25485248,2667.4,2666.8,1.7321]
[1739100237536,5.25485248,2667.4,2666.9,0.48064069]
[1739100237937,5.25485248,2667.4,2666.8,1.7321]
[1739100238132,5.25485248,2667.4,2666.9,0.48063866]
[1739100238330,5.25485248,2667.4,2667.0,4.45741315]
[1739100238531,0.19135723,2667.7,2667.1,0.48063866]
[1739100238732,0.5472,2667.6,2667.2,1.61553866]
[1739100238936,0.5472,2667.6,2667.3,0.48063866]
[1739100239238,0.5472,2667.6,2667.4,0.4805741]
[1739100239443,0.5472,2667.6,2667.3,0.5832]
[1739100239628,0.5472,2667.6,2667.4,0.48043698]
[1739100239828,0.5472,2667.6,2667.3,0.5832]
[1739100240034,0.5472,2667.6,2667.4,0.48043113]
[1739100240240,0.5791,2667.7,2667.5,0.48041388]
[1739100240435,0.5791,2667.7,2667.3,3.791]
[1739100240635,0.5791,2667.7,2667.4,0.48041143]
[1739100240836,0.5791,2667.7,2667.5,0.48041143]
[1739100241038,0.5791,2667.7,2667.3,3.791]
[1739100241239,0.5791,2667.7,2667.4,1.24904987]
[1739100241543,0.5791,2667.7,2667.5,0.48039462]
[1739100241844,0.5791,2667.7,2667.3,3.791]
[1739100242035,0.5791,2667.7,2667.4,1.24847846]
[1739100242238,0.5791,2667.7,2667.5,0.48017911]
[1739100242437,0.5791,2667.7,2667.3,3.791]
[1739100242737,0.5791,2667.7,2667.4,0.47999075]
[1739100242943,0.5791,2667.7,2667.5,0.47999075]
[1739100243137,0.5791,2667.7,2667.3,0.5832]
[1739100244244,0.5791,2667.7,2667.3,1.1683]
[1739100244543,0.5791,2667.7,2667.4,0.47246368]
[1739100244733,0.5791,2667.7,2667.3,1.1683]
[1739100244935,0.5791,2667.7,2667.4,0.47245476]
[1739100245141,1.1825,2667.9,2667.3,4.3761]
[1739100245442,0.5851,2667.9,2667.4,0.4724544]
[1739100245633,0.5851,2667.9,2667.5,0.47228505]
[1739100245839,0.5851,2667.9,2667.3,4.3761]
[1739100246041,0.5851,2667.9,2667.4,0.47228509]
[1739100246245,0.5851,2667.9,2667.5,0.47228509]
[1739100246449,0.5851,2667.9,2667.3,4.3761]
[1739100246745,0.5851,2667.9,2667.4,0.4721222]
[1739100247041,0.5851,2667.9,2667.3,4.3761]
[1739100247042,1.1329,2667.9,2667.3,4.3761]
[1739100247638,1.1329,2667.9,2667.4,0.47207613]
[1739100247838,1.1329,2667.9,2667.3,4.3761]
[1739100248039,1.1329,2667.9,2667.4,0.47205918]
[1739100248241,1.1329,2667.9,2667.3,4.3761]
[1739100248442,1.1329,2667.9,2667.4,0.47196961]
[1739100248643,1.1329,2667.9,2667.3,4.3761]
[1739100248846,1.1329,2667.9,2667.4,0.47197122]
[1739100249146,1.1329,2667.9,2667.3,4.3761]
[1739100249441,1.1329,2667.9,2667.4,0.47196741]
[1739100249742,1.1329,2667.9,2667.3,4.3761]
[1739100252237,4.28185822,2667.8,2667.3,1.1683]
[1739100252444,4.28185822,2667.8,2667.3,0.5832]
[1739100253447,7.48965822,2667.8,2667.3,0.5832]
[1739100254639,7.48965822,2667.8,2667.0,0.5839]
[1739100254947,7.48965822,2667.8,2667.1,1.04961918]
[1739100255143,3.2078,2667.5,2666.7,40.80562419]
[1739100255450,1.7531,2667.4,2666.7,41.38312419]
[1739100255748,5.75024244,2667.4,2666.7,41.38312419]
[1739100260060,3.2078,2667.2,2666.7,41.38312419]
[1739100260656,4.14909515,2667.1,2666.7,41.38312419]
[1739100260857,1.1306,2667.0,2666.7,41.38312419]
[1739100261059,1.6964,2667.0,2666.7,41.38312419]
[1739100261358,4.27905059,2666.9,2666.7,41.38312419]
[1739100262646,4.27905059,2666.9,2666.7,40.80562419]
[1739100262850,4.27905059,2666.9,2666.7,0.00562419]
[1739100265553,3.2078,2667.2,2666.7,0.00562419]
[1739100265856,4.01848354,2666.9,2666.7,0.00562419]
[1739100266056,5.16258354,2667.1,2666.7,0.00562419]
[1739100266255,4.01848354,2667.0,2666.7,0.00562419]
[1739100266552,0.577,2666.9,2666.7,0.00562419]
[1739100266953,4.01848354,2667.0,2666.7,0.00562419]
[1739100268657,4.59548354,2667.0,2666.7,0.00562419]
[1739100268862,4.59548354,2667.0,2666.8,40.8]
[1739100269261,4.59548354,2667.0,2666.9,0.5827]
[1739100270757,4.01848354,2667.0,2666.9,0.5827]
[1739100271861,6.2018,2667.5,2666.9,3.7905]
[1739100272156,4.29134623,2667.3,2666.9,3.7905]
[1739100272551,3.2078,2667.5,2666.9,3.7905]
[1739100272960,4.18995334,2667.4,2666.9,3.7905]
[1739100278170,0.6012,2667.3,2666.9,3.7905]
[1739100279463,4.18995334,2667.4,2666.9,3.7905]
[1739100280676,4.18995334,2667.4,2667.0,0.46492943]
[1739100280971,4.18995334,2667.4,2666.9,3.7905]
[1739100281272,4.18995334,2667.4,2667.0,0.4650813]
[1739100281461,4.18995334,2667.4,2666.9,3.7905]
[1739100281665,4.18995334,2667.4,2667.0,0.4650842]
[1739100281863,4.18995334,2667.4,2666.9,3.7905]
[1739100282065,4.18995334,2667.4,2667.0,0.46508268]
[1739100282372,4.18995334,2667.4,2666.9,3.7905]
[1739100282669,4.18995334,2667.4,2667.0,6.68813485]
[1739100282969,4.18995334,2667.4,2667.0,6.223]
[1739100284866,0.74675152,2667.6,2667.1,0.46519659]
[1739100285070,0.556,2667.6,2667.2,1.59728601]
[1739100285270,0.556,2667.6,2667.2,1.1321]
[1739100285571,0.556,2667.6,2667.3,0.5859]
[1739100287471,0.00562419,2668.0,2667.3,0.5859]
[1739100287671,0.5489,2667.9,2667.3,0.5859]
[1739100287868,4.26313689,2667.6,2667.3,0.5859]
[1739100288068,4.81203689,2667.9,2667.3,0.5859]
[1739100288269,0.5489,2667.9,2667.3,0.5859]
[1739100288466,4.26313689,2667.8,2667.3,0.5859]
[1739100292573,4.26313689,2667.8,2667.4,6.223]
[1739100300885,4.26313689,2667.8,2667.3,0.5859]
[1739100303480,0.5489,2667.9,2667.4,1.03717251]
[1739100303784,0.5489,2667.9,2667.5,40.8]
[1739100303986,0.5489,2667.9,2667.6,0.5496]
[1739100304478,0.00562419,2668.0,2667.7,0.5775]
[1739100304685,0.00562419,2668.0,2667.8,3.7796]
[1739100305581,3.96779647,2667.9,2667.7,0.5775]
[1739100305782,1.6761,2667.8,2667.7,0.5775]
[1739100307173,0.00562419,2668.0,2667.7,0.5775]
[1739100307589,0.00562419,2668.0,2667.7,1.1515]
[1739100310386,4.31652286,2667.9,2667.7,0.5775]
[1739100310690,1.7449,2667.8,2667.7,0.5775]
[1739100320686,1.7449,2667.8,2667.3,3.2078]
[1739100320882,9.00451777,2667.8,2667.0,3.2078]
[1739100321280,9.00451777,2667.8,2667.1,40.8]
[1739100324494,3.2078,2667.6,2667.1,40.8]
[1739100324894,4.24786901,2667.5,2667.1,40.8]
[1739100325094,1.1178,2667.4,2667.2,0.5445]
[1739100325392,4.02159743,2667.3,2667.2,1.1328]
[1739100326590,1.612,2667.8,2667.2,1.7148]
[1739100326896,4.07500351,2667.7,2667.2,1.7148]
[1739100330098,4.07500351,2667.7,2666.7,0.3048308]
[1739100330099,3.2078,2667.6,2666.7,3.21342419]
[1739100330291,1.1476,2667.5,2666.8,1.1735]
[1739100330484,5.72089642,2667.5,2666.8,1.1735]
[1739100330693,5.72089642,2667.5,2666.9,40.8]
[1739100333194,5.72089642,2667.5,2667.0,0.5875]
[1739100336191,5.72089642,2667.5,2667.1,40.8]
[1739100336398,5.14359642,2667.5,2667.2,0.5877]
[1739100336608,4.57329642,2667.5,2667.2,1.1871]
[1739100337403,1.1431,2667.8,2667.2,1.1871]
[1739100337799,4.23404502,2667.6,2667.2,1.1871]
[1739100337999,4.23404502,2667.7,2667.2,1.1871]
[1739100338200,1.1431,2667.8,2667.2,1.1871]
[1739100338413,4.21690078,2667.7,2667.2,1.1871]
[1739100341703,4.21690078,2667.7,2667.3,40.8]
[1739100345808,4.21690078,2667.7,2667.2,1.1871]
[1739100349106,0.5911,2667.8,2667.3,3.2078]
[1739100349308,0.5911,2667.8,2667.4,0.5562]
[1739100350406,4.16790906,2667.7,2667.4,0.5562]
[1739100350607,0.563,2667.6,2667.4,0.5562]
[1739100351009,4.16790906,2667.5,2667.4,0.5562]
[1739100353322,4.16790906,2667.5,2667.2,1.1871]
[1739100353521,0.5567,2667.4,2667.2,1.1871]
[1739100354023,3.92674741,2667.3,2667.2,1.1871]
[1739100354721,3.92674741,2667.3,2667.2,0.5994]
[1739100355116,3.92674741,2667.3,2667.0,3.2078]
[1739100355415,0.5886,2667.2,2667.0,0.5571]
[1739100358419,0.5886,2667.2,2666.9,40.8]
[1739100358618,4.04076793,2667.1,2666.9,40.8]
[1739100358817,4.59476793,2667.1,2666.9,40.8]
[1739100359024,0.5925,2667.0,2666.9,40.8]
[1739100359225,0.5925,2667.0,2666.7,3.21342419]
[1739100359417,4.73479298,2667.0,2666.7,3.21342419]
[1739100359617,4.73479298,2667.0,2666.7,44.01342419]
[1739100360925,4.73479298,2667.0,2666.8,0.5499]
[1739100361329,4.73479298,2667.0,2666.9,0.5573]
[1739100362729,4.73479298,2667.0,2666.8,0.5499]
[1739100367336,3.2078,2666.9,2666.7,0.00562419]
[1739100367538,3.2078,2666.9,2666.2,0.5487]
[1739100367737,3.2078,2666.6,2666.3,40.8]
[1739100367938,1.1621,2666.5,2666.3,40.8]
[1739100368133,5.91870955,2666.5,2666.3,40.8]
[1739100368438,5.91870955,2666.5,2666.1,3.2078]
[1739100368637,5.91870955,2666.5,2666.1,3.21342419]
[1739100368935,5.91870955,2666.5,2666.2,40.8]
[1739100369337,5.91870955,2666.5,2666.2,0.5487]
[1739100370235,5.33090955,2666.5,2666.2,0.5487]
[1739100370436,5.33090955,2666.5,2666.3,0.5695]
[1739100371235,5.33090955,2666.5,2666.2,0.5487]
[1739100375445,5.33090955,2666.5,2666.2,1.0999]
[1739100380941,5.33090955,2666.5,2666.2,0.5487]
[1739100381143,5.33090955,2666.5,2666.1,0.00562419]
[1739100381343,3.2078,2666.3,2666.1,0.00562419]
[1739100381552,0.5939,2666.2,2666.1,0.00562419]
[1739100381846,4.5344846,2666.2,2666.1,0.00562419]
[1739100392561,7.7422846,2666.2,2666.1,0.00562419]
[1739100395261,7.7422846,2666.2,2665.5,0.5966]
[1739100395464,3.2078,2665.9,2665.5,0.5881]